bitfinex-derivatives/quotes_SOLF0:USTF0_20250528
["timestamp","ask_amount","ask_price","bid_price","bid_amount"]
[1748404396296,5.74764573,175.13,175.09,0.04232087]
[1748404397104,5.74764573,175.13,175.09,5.75072087]
[1748404397904,0.04024573,175.13,175.11,5.7075]
[1748404398100,0.04024573,175.13,175.09,0.04232087]
[1748404399005,0.04024573,175.13,175.12,5.7075]
[1748404404305,5.706,175.17,175.13,5.7068]
[1748404405008,5.7062,175.16,175.13,5.7068]
[1748404405307,5.7443958,175.16,175.13,5.74380386]
[1748404405812,0.0381958,175.16,175.13,5.74380386]
[1748404406203,0.0381958,175.16,175.14,5.7068]
[1748404406708,0.0381958,175.16,175.13,5.74410386]
[1748404408009,0.0381958,175.16,175.14,5.7067]
[1748404408507,0.0381958,175.16,175.13,5.74400386]
[1748404408713,0.0381958,175.16,175.13,0.03700386]
[1748404409902,0.0381958,175.16,175.14,5.7068]
[1748404410809,0.0381958,175.16,175.13,5.74400386]
[1748404411809,0.0381958,175.16,175.14,5.7067]
[1748404413314,0.0381958,175.16,175.15,5.7065]
[1748404415816,0.0381958,175.16,175.14,5.7067]
[1748404416426,0.0381958,175.16,175.13,5.74400386]
[1748404417115,0.0381958,175.16,175.14,5.7068]
[1748404421214,0.0381958,175.16,175.15,5.7065]
[1748404424117,0.0381958,175.16,175.14,5.7067]
[1748404424319,5.7443958,175.16,175.13,0.03700386]
[1748404424819,5.7443958,175.16,175.13,5.74390386]
[1748404426020,5.7443958,175.16,175.14,5.7067]
[1748404426221,0.0381958,175.16,175.14,5.7067]
[1748404428821,5.7444958,175.16,175.14,5.7067]
[1748404431018,0.0381958,175.16,175.14,5.7067]
[1748404433515,5.7443958,175.16,175.14,5.7067]
[1748404437524,5.7067,175.15,175.13,5.74410386]
[1748404438025,0.0381958,175.16,175.13,5.74410386]
[1748404438223,5.7445958,175.16,175.13,5.74410386]
[1748404439427,5.7066,175.15,175.13,5.74410386]
[1748404441619,5.7066,175.15,175.13,0.03700386]
[1748404442422,5.7066,175.15,175.13,5.74400386]
[1748404444220,0.0381958,175.16,175.13,0.03700386]
[1748404444424,239.0,175.19,175.13,0.03700386]
[1748404444425,239.0,175.19,175.14,28.82]
[1748404444623,493.04,175.34,175.14,28.82]
[1748404444624,28.82,175.28,175.14,28.82]
[1748404444822,2.4581912,175.27,175.22,4.22204425]
[1748404445029,2.4581912,175.26,175.21,111.38]
[1748404445323,5.703,175.26,175.21,117.0843]
[1748404445523,0.0369117,175.25,175.22,0.04258905]
[1748404445728,5.7039,175.24,175.22,0.04258905]
[1748404445930,0.0369117,175.25,175.22,0.04258905]
[1748404446329,5.7405117,175.25,175.22,0.04258905]
[1748404446532,8.19852871,175.25,175.22,0.04258905]
[1748404450733,5.7037,175.24,175.22,0.04258905]
[1748404454443,5.704,175.23,175.22,0.04258905]
[1748404460247,5.704,175.23,175.15,28.82]
[1748404460248,5.7055,175.19,175.15,144.20204425]
[1748404461444,0.03655304,175.19,175.15,0.04277525]
[1748404461840,4.22204425,175.18,175.15,0.04277525]
[1748404462447,5.7061,175.17,175.15,0.04277525]
[1748404464650,5.7063,175.16,175.15,0.04277525]
[1748404466247,5.706,175.17,175.15,0.04277525]
[1748404466546,0.03655304,175.19,175.15,0.04277525]
[1748404467146,5.7056,175.18,175.15,0.04277525]
[1748404467349,0.03655304,175.19,175.15,0.04277525]
[1748404467951,5.74205304,175.19,175.16,5.7062]
[1748404468252,0.03655304,175.19,175.15,0.04277525]
[1748404468453,0.03655304,175.19,175.16,5.706]
[1748404469355,5.74185304,175.19,175.16,5.706]
[1748404472360,0.03655304,175.19,175.18,5.7056]
[1748404472556,0.03655304,175.19,175.15,0.04277525]
[1748404473760,5.74195304,175.19,175.15,0.04277525]
[1748404474362,5.74195304,175.19,175.16,5.7062]
[1748404474756,5.74195304,175.19,175.17,5.7058]
[1748404479967,5.74195304,175.19,175.16,5.7061]
[1748404480163,5.74195304,175.19,175.15,0.04277525]
[1748404481163,5.74195304,175.19,175.16,5.7062]
[1748404481668,5.74195304,175.19,175.15,0.04277525]
[1748404481967,5.74195304,175.19,175.17,5.7059]
[1748404482367,5.7058,175.18,175.15,0.04277525]
[1748404482567,0.03655304,175.19,175.15,0.04277525]
[1748404483064,5.7063,175.16,175.15,0.04277525]
[1748404484472,0.03655304,175.19,175.15,0.04277525]
[1748404484473,5.706,175.17,175.15,0.04277525]
[1748404484966,0.03655304,175.19,175.15,0.04277525]
[1748404485168,5.7063,175.16,175.15,0.04277525]
[1748404485373,28.91655304,175.19,175.15,0.04277525]
[1748404485967,9.92823591,175.17,175.15,0.04277525]
[1748404486172,4.22203591,175.17,175.15,0.04277525]
[1748404487275,9.92793591,175.17,175.15,5.74927525]
[1748404488266,33.13858895,175.19,175.16,5.7063]
[1748404488872,33.13858895,175.19,175.15,0.04277525]
[1748404488873,33.13858895,175.19,175.15,5.74927525]
[1748404489275,0.03655304,175.19,175.15,0.04277525]
[1748404489472,0.03655304,175.19,175.17,5.7056]
[1748404489680,0.03655304,175.19,175.15,0.04277525]
[1748404490473,5.74185304,175.19,175.16,5.706]
[1748404491173,5.74185304,175.19,175.17,5.7059]
[1748404491677,0.03655304,175.19,175.17,5.7059]
[1748404492879,5.74195304,175.19,175.17,5.7059]
[1748404494182,5.7056,175.18,175.16,5.7062]
[1748404496577,0.03655304,175.19,175.15,0.04277525]
[1748404496782,4.25858895,175.19,175.15,0.04277525]
[1748404497084,5.7061,175.17,175.15,0.04277525]
[1748404498483,0.03655304,175.19,175.15,33.16481116]
[1748404498685,0.03655304,175.19,175.17,4.22203591]
[1748404499877,0.03655304,175.19,175.18,5.7056]
[1748404500485,5.74185304,175.19,175.15,28.94277525]
[1748404500685,0.03655304,175.19,175.15,28.94277525]
[1748404501084,0.03655304,175.19,175.17,5.7057]
[1748404502283,0.03655304,175.19,175.18,5.7056]
[1748404504785,0.03655304,175.19,175.15,0.04277525]
[1748404505787,5.7057,175.18,175.15,0.04277525]
[1748404506690,5.7063,175.16,175.15,0.04277525]
[1748404507286,5.7061,175.17,175.15,0.04277525]
[1748404509190,5.7061,175.17,175.15,5.74927525]
[1748404510289,5.7063,175.16,175.15,0.04277525]
[1748404510493,28.62,175.18,175.09,28.62]
[1748404510694,28.62,175.18,175.1,110.46]
[1748404510994,28.62,175.18,175.09,139.1]
[1748404511387,5.7074,175.13,175.12,0.03815604]
[1748404515092,5.707,175.14,175.12,0.03815604]
[1748404524094,5.707,175.14,175.12,5.74545604]
[1748404525203,5.707,175.14,175.12,0.03815604]
[1748404525400,0.03971858,175.15,175.12,0.03815604]
[1748404526303,5.707,175.14,175.12,5.74565604]
[1748404527702,5.707,175.14,175.12,0.03815604]
[1748404529504,5.707,175.14,175.12,5.74545604]
[1748404530003,5.74641858,175.15,175.12,5.74545604]
[1748404530803,5.707,175.14,175.12,5.74545604]
[1748404531006,5.707,175.14,175.12,0.03815604]
[1748404532704,5.7072,175.13,175.12,0.03815604]
[1748404533007,0.03971858,175.15,175.12,0.03815604]
[1748404533206,5.7072,175.13,175.12,0.03815604]
[1748404533605,0.03971858,175.15,175.12,0.03815604]
[1748404535104,0.03971858,175.15,175.14,5.7069]
[1748404535905,5.74631858,175.15,175.13,5.7071]
[1748404538302,0.03971858,175.15,175.13,5.7071]
[1748404539309,0.03971858,175.15,175.14,5.7069]
[1748404565932,239.0,175.23,175.19,5.7052]
[1748404566137,30.91801701,175.25,175.19,5.7052]
[1748404566334,5.7045,175.22,175.18,4.22307639]
[1748404566531,5.7045,175.22,175.19,5.7051]
[1748404566738,30.91801701,175.25,175.18,4.22307639]
[1748404566940,0.03797766,175.23,175.19,0.03668266]
[1748404567337,5.74217766,175.23,175.2,5.7049]
[1748404570040,5.7043,175.22,175.19,5.74188266]
[1748404570639,0.03797766,175.23,175.19,0.03668266]
[1748404570946,0.03797766,175.23,175.22,4.22307639]
[1748404571147,0.03797766,175.23,175.22,9.92737639]
[1748404575742,0.03797766,175.23,175.21,5.7045]
[1748404576149,0.03797766,175.23,175.2,4.22307639]
[1748404576552,0.03797766,175.23,175.22,5.7043]
[1748404580757,0.03797766,175.23,175.19,28.47668266]
[1748404580950,0.03797766,175.23,175.19,138.65668266]
[1748404581253,0.03797766,175.23,175.21,5.7046]
[1748404581458,0.03797766,175.23,175.2,4.22307639]
[1748404581958,0.03797766,175.23,175.22,5.7043]
[1748404586656,5.7043,175.22,175.2,5.7048]
[1748404586855,0.03797766,175.23,175.19,138.65668266]
[1748404587062,0.03797766,175.23,175.19,110.21668266]
[1748404587362,0.03797766,175.23,175.19,5.74178266]
[1748404587764,5.7045,175.22,175.19,5.74178266]
[1748404587967,0.03797766,175.23,175.19,0.03668266]
[1748404588560,5.705,175.2,175.19,0.03668266]
[1748404593661,5.7048,175.21,175.19,0.03668266]
[1748404596062,5.705,175.2,175.19,0.03668266]
[1748404602372,5.7063,175.16,175.14,110.18]
[1748404602567,5.7063,175.16,175.14,115.8869]
[1748404603070,4.22307639,175.17,175.1,32.66307639]
[1748404603272,0.03626473,175.15,175.12,0.04268112]
[1748404603475,4.25934112,175.15,175.12,0.04268112]
[1748404603768,5.7072,175.13,175.12,0.04268112]
[1748404617475,4.25934112,175.15,175.12,5.75028112]
[1748404617877,4.25934112,175.15,175.12,0.04268112]
[1748404618077,9.96614112,175.15,175.12,0.04268112]
[1748404619079,5.74306473,175.15,175.12,0.04268112]
[1748404619579,0.03626473,175.15,175.13,5.7072]
[1748404620474,0.03626473,175.15,175.14,5.7069]
[1748404621681,0.03626473,175.15,175.12,0.04268112]
[1748404621876,5.7072,175.13,175.12,110.26268112]
[1748404623182,5.7072,175.13,175.12,0.04268112]
[1748404627282,5.707,175.14,175.12,0.04268112]
[1748404628783,5.7072,175.13,175.12,0.04268112]
[1748404630975,5.707,175.14,175.12,0.04268112]
[1748404631182,0.03626473,175.15,175.12,0.04268112]
[1748404631382,0.03626473,175.15,175.12,4.26575751]
[1748404631583,0.03626473,175.15,175.14,5.7069]
[1748404633382,0.03626473,175.15,175.12,0.04268112]
[1748404634174,5.74296473,175.15,175.13,5.7072]
[1748404634379,0.03626473,175.15,175.13,5.7072]
[1748404635388,0.03626473,175.15,175.12,110.24268112]
[1748404635687,5.7072,175.13,175.12,0.04268112]
[1748404646198,5.7086,175.09,175.05,28.44]
[1748404646398,239.0,175.14,175.07,5.709]
[1748404646600,241.44086191,175.13,175.07,5.709]
[1748404646800,5.7084,175.1,175.07,5.709]
[1748404647393,5.74890531,175.1,175.07,5.74974673]
[1748404647598,5.7087,175.09,175.07,0.04074673]
[1748404647903,0.04050531,175.1,175.07,0.04074673]
[1748404648901,5.74870531,175.1,175.08,5.7089]
[1748404649204,0.04050531,175.1,175.07,0.04074673]
[1748404650002,5.74880531,175.1,175.07,5.74974673]
[1748404650402,0.04050531,175.1,175.07,0.04074673]
[1748404650702,0.04050531,175.1,175.09,5.7085]
[1748404653804,0.04050531,175.1,175.08,5.7088]
[1748404654398,0.04050531,175.1,175.07,0.04074673]
[1748404656003,5.7085,175.09,175.07,5.74984673]
[1748404658600,5.7085,175.09,175.07,115.96984673]
[1748404659405,0.04050531,175.1,175.08,5.7088]
[1748404660001,5.74870531,175.1,175.08,5.7088]
[1748404660605,5.74870531,175.1,175.08,115.9288]
[1748404661407,5.74870531,175.1,175.08,5.7088]
[1748404661707,5.74870531,175.1,175.08,115.9288]
[1748404665912,0.04050531,175.1,175.09,5.7085]
[1748404666100,0.04050531,175.1,175.09,9.93339695]
[1748404666308,0.04050531,175.1,175.08,138.66]
[1748404666309,4.22489695,175.18,175.13,5.707]
[1748404666612,2.43925679,175.17,175.13,5.707]
[1748404666811,4.22489695,175.18,175.13,5.707]
[1748404667013,5.7064,175.16,175.11,4.22489695]
[1748404667209,0.04344502,175.15,175.12,0.04180412]
[1748404668117,5.75004502,175.15,175.13,5.7072]
[1748404668508,0.04344502,175.15,175.13,5.7072]
[1748404670710,0.04344502,175.15,175.14,115.9069]
[1748404670911,0.04344502,175.15,175.14,120.13179695]
[1748404671110,239.0,175.2,175.14,114.42489695]
[1748404671313,239.0,175.2,175.17,5.7057]
[1748404671519,4.22489695,175.21,175.17,5.7057]
[1748404671820,248.99719695,175.23,175.17,5.7057]
[1748404672015,2.43965433,175.22,175.17,5.7057]
[1748404672213,0.03662263,175.21,175.18,0.03977764]
[1748404673014,5.7052,175.2,175.18,0.03977764]
[1748404677522,0.03662263,175.21,175.18,0.03977764]
[1748404678122,5.7053,175.19,175.18,0.03977764]
[1748404683229,34.1453,175.19,175.18,0.03977764]
[1748404683531,5.7071,175.14,175.12,138.62]
[1748404684435,5.74848039,175.15,175.12,144.3273]
[1748404685628,5.707,175.14,175.12,34.1473]
[1748404685829,0.04178039,175.15,175.12,144.3273]
[1748404686732,0.04178039,175.15,175.14,5.7069]
[1748404689941,0.04178039,175.15,175.12,138.62]
[1748404690434,0.04178039,175.15,175.13,5.7072]
[1748404694942,5.74838039,175.15,175.13,5.7072]
[1748404697043,0.04178039,175.15,175.12,144.3275]
[1748404697241,0.04178039,175.15,175.12,115.8875]
[1748404697642,5.74848039,175.15,175.12,115.8875]
[1748404698146,5.74848039,175.15,175.13,5.7072]
[1748404698853,0.04178039,175.15,175.11,0.03715953]
[1748404699338,5.7076,175.12,175.11,0.03715953]
[1748404700048,5.7073,175.13,175.11,0.03715953]
[1748404700243,4.22194497,175.14,175.11,0.03715953]
[1748404700839,5.7075,175.13,175.11,0.03715953]
[1748404705450,5.7076,175.12,175.11,0.03715953]
[1748404713360,243.22194497,175.14,175.11,0.03715953]
[1748404713958,5.7076,175.12,175.11,0.03715953]
[1748404743292,5.7074,175.13,175.11,0.03715953]
[1748404744590,5.7076,175.12,175.11,0.03715953]
[1748404748593,8.16683678,175.12,175.11,0.03715953]
[1748404748892,8.16696076,175.12,175.11,0.03715953]
[1748404749698,8.1669902,175.12,175.11,0.03715953]
[1748404750288,5.7076,175.12,175.11,0.03715953]
[1748404750489,8.16703132,175.12,175.11,0.03715953]
[1748404750691,5.7076,175.12,175.11,0.03715953]
[1748404750896,8.16703132,175.12,175.11,0.03715953]
[1748404752198,8.16689268,175.12,175.11,0.03715953]
[1748404755293,5.7076,175.12,175.11,0.03715953]
[1748404772716,5.7074,175.13,175.11,0.03715953]
[1748404773615,5.7076,175.12,175.11,0.03715953]
[1748404787028,8.16641047,175.12,175.11,0.03715953]
[1748404787538,8.16625762,175.12,175.11,0.03715953]
[1748404788636,5.7076,175.12,175.11,0.03715953]
[1748404792433,5.7084,175.1,175.07,5.709]
[1748404792639,5.7084,175.1,175.08,110.1]
[1748404794340,5.7085,175.09,175.08,110.1]
[1748404794541,0.04311576,175.11,175.08,110.1]
[1748404794941,5.7084,175.1,175.08,110.1]
[1748404797744,5.7085,175.09,175.07,5.74505867]
[1748404797951,0.04311576,175.11,175.08,110.08]
[1748404798343,5.7082,175.1,175.08,110.08]
[1748404799247,5.7086,175.09,175.08,110.08]
[1748404799650,0.04311576,175.11,175.08,110.08]
[1748404799947,0.04311576,175.11,175.07,0.03605867]
[1748404800146,0.04311576,175.11,175.07,110.11605867]
[1748404800346,5.7085,175.09,175.07,115.82525867]
[1748404800845,4.22194497,175.1,175.07,0.03605867]
[1748404801650,5.7088,175.09,175.07,0.03605867]
[1748404802648,5.7089,175.08,175.07,0.03605867]
[1748404803750,239.04311576,175.11,174.91,11.4288]
[1748404804056,4.22194497,175.04,174.97,110.08]
[1748404804252,4.22194497,175.04,174.97,114.30194497]
[1748404804552,4.22194497,175.04,174.99,5.7115]
[1748404804750,0.04145685,175.03,175.0,0.03944686]
[1748404807152,0.04145685,175.03,175.01,5.7109]
[1748404809853,0.04145685,175.03,175.0,5.75084686]
[1748404810054,0.04145685,175.03,175.0,0.03944686]
[1748404810263,4.22194497,175.02,175.0,0.03944686]
[1748404810454,9.93294497,175.02,175.0,0.03944686]
[1748404810957,4.22194497,175.02,175.0,0.03944686]
[1748404811154,5.7111,175.01,175.0,0.03944686]
[1748404811360,271.60194497,175.02,174.93,4.22194497]
[1748404811554,4.22194497,174.99,174.94,110.1]
[1748404811754,4.22194497,174.99,174.95,5.7128]
[1748404811956,4.22194497,174.99,174.92,28.38]
[1748404812155,4.22194497,174.99,174.92,138.48]
[1748404812460,0.03998411,174.97,174.94,0.04070528]
[1748404812952,0.03998411,174.97,174.95,5.713]
[1748404813259,5.75248411,174.97,174.94,0.04070528]
[1748404813759,0.03998411,174.97,174.94,5.75390528]
[1748404814858,5.75248411,174.97,174.94,5.75390528]
[1748404816961,0.03998411,174.97,174.95,5.7131]
[1748404817162,0.03998411,174.97,174.94,0.04070528]
[1748404817567,5.7131,174.95,174.94,0.04070528]
[1748404818266,239.03998411,174.97,174.94,0.04070528]
[1748404818864,0.03998411,174.97,174.96,5.7128]
[1748404820159,0.03998411,174.97,174.94,0.04070528]
[1748404821765,5.75268411,174.97,174.94,5.75390528]
[1748404826868,5.7129,174.96,174.94,0.04070528]
[1748404827468,5.75248411,174.97,174.94,0.04070528]
[1748404827871,0.03998411,174.97,174.94,0.04070528]
[1748404829271,0.03998411,174.97,174.95,5.7129]
[1748404829771,5.75248411,174.97,174.95,5.7129]
[1748404831368,5.75248411,174.97,174.94,5.75400528]
[1748404832267,5.7131,174.95,174.94,0.04070528]
[1748404832473,0.03998411,174.97,174.94,0.04070528]
[1748404834172,0.03998411,174.97,174.96,5.7128]
[1748404835874,0.03998411,174.97,174.95,3.8865]
[1748404835875,0.03998411,174.97,174.95,9.5995]
[1748404836767,0.03998411,174.97,174.94,5.75400528]
[1748404836975,5.75258411,174.97,174.94,5.75400528]
[1748404837275,0.03998411,174.97,174.94,0.04070528]
[1748404838775,5.7131,174.95,174.94,0.04070528]
[1748404839174,0.03998411,174.97,174.94,0.04070528]
[1748404839778,5.7128,174.96,174.94,5.75390528]
[1748404840477,5.7128,174.96,174.94,0.04070528]
[1748404843781,5.7131,174.95,174.94,0.04070528]
[1748404852599,0.03998411,174.97,174.94,0.04070528]
[1748404853998,5.7131,174.95,174.94,0.04070528]
[1748404867205,5.7131,174.95,174.86,28.36]
[1748404867206,239.0,174.94,174.86,28.36]
[1748404867403,4.23177949,174.92,174.86,34.076]
[1748404867607,4.23177949,174.92,174.86,5.716]
[1748404867907,239.0,174.94,174.86,5.716]
[1748404868104,2.45933842,174.93,174.86,5.716]
[1748404868312,0.03960888,174.92,174.88,0.03821154]
[1748404868609,5.7148,174.9,174.88,0.03821154]
[1748404869208,28.39960888,174.92,174.88,0.03821154]
[1748404870409,5.7146,174.91,174.89,5.7149]
[1748404870708,5.7146,174.91,174.88,0.03821154]
[1748404871210,5.7146,174.91,174.88,5.75341154]
[1748404872010,5.7148,174.9,174.88,5.75341154]
[1748404872206,28.39960888,174.92,174.88,5.75341154]
[1748404872406,5.7148,174.9,174.88,5.75341154]
[1748404877613,28.39960888,174.92,174.88,0.03821154]
[1748404879011,5.7151,174.89,174.88,0.03821154]
[1748404882913,5.7167,174.84,174.8,523.7335]
[1748404883115,5.7167,174.84,174.81,110.14]
[1748404883516,5.7167,174.84,174.81,5.7175]
[1748404883914,5.75677804,174.84,174.81,5.75823501]
[1748404884114,5.717,174.83,174.81,5.75823501]
[1748404886119,5.75697804,174.84,174.82,5.7174]
[1748404886320,0.04007804,174.84,174.82,5.7174]
[1748404887417,0.04007804,174.84,174.83,5.717]
[1748404891924,0.04007804,174.84,174.82,5.7172]
[1748404892424,5.75687804,174.84,174.82,5.7172]
[1748404892726,0.04007804,174.84,174.82,5.7172]
[1748404893716,0.04007804,174.84,174.83,5.717]
[1748404901635,0.04007804,174.84,174.82,5.7172]
[1748404902035,5.75677804,174.84,174.82,5.7172]
[1748404907441,0.04007804,174.84,174.82,5.7172]
[1748404907840,0.04007804,174.84,174.83,5.717]
[1748404913443,239.0,174.89,174.88,5.7154]
[1748404913647,239.0,174.94,174.88,5.7154]
[1748404914242,5.7147,174.91,174.88,5.7154]
[1748404914442,5.75742174,174.91,174.88,5.7523205]
[1748404914640,0.04272174,174.91,174.88,0.0369205]
[1748404914841,5.7151,174.89,174.88,0.0369205]
[1748404915447,5.7166,174.85,174.82,5.7171]
[1748404915848,267.34,174.91,174.82,5.7171]
[1748404916046,5.7167,174.85,174.82,5.7171]
[1748404916452,5.7600858,174.85,174.82,5.75372667]
[1748404918554,5.7167,174.84,174.82,5.75372667]
[1748404920357,5.7167,174.84,174.82,0.03662667]
[1748404920857,5.717,174.83,174.82,0.03662667]
[1748404921457,5.7181,174.8,174.78,5.7186]
[1748404922152,5.7184,174.79,174.77,34.0589]
[1748404922352,5.9014,174.86,174.77,34.0589]
[1748404922546,0.03780638,174.83,174.8,0.03869116]
[1748404922951,5.7174,174.82,174.8,0.03869116]
[1748404924256,5.7177,174.81,174.8,0.03869116]
[1748404926257,5.7175,174.82,174.8,0.03869116]
[1748404926753,5.7177,174.81,174.8,0.03869116]
[1748404927958,5.7175,174.82,174.8,0.03869116]
[1748404930058,5.7175,174.82,174.8,5.75659116]
[1748404931756,5.7177,174.81,174.8,0.03869116]
[1748404931956,0.03780638,174.83,174.8,0.03869116]
[1748404932153,28.39780638,174.83,174.8,0.03869116]
[1748404933059,5.7176,174.82,174.8,0.03869116]
[1748404933261,28.39780638,174.83,174.8,0.03869116]
[1748404933564,5.7174,174.82,174.8,0.03869116]
[1748404936264,5.7177,174.81,174.8,0.03869116]
[1748404936864,5.7176,174.82,174.8,0.03869116]
[1748404937059,28.39780638,174.83,174.8,5.75669116]
[1748404937763,34.11500638,174.83,174.81,5.7176]
[1748404938866,28.39780638,174.83,174.81,5.7176]
[1748404941268,34.11490638,174.83,174.81,5.7176]
[1748404942469,5.75490638,174.83,174.81,5.7176]
[1748404942865,0.03780638,174.83,174.81,5.7176]
[1748404943469,5.75480638,174.83,174.81,5.7176]
[1748404944371,0.03780638,174.83,174.82,5.7174]
[1748404958886,243.23619278,174.9,174.86,5.7158]
[1748404959582,5.7152,174.89,174.86,5.7158]
[1748404959780,5.7526911,174.89,174.86,5.7572789]
[1748404960292,5.7154,174.88,174.86,0.0414789]
[1748404960487,0.0374911,174.89,174.86,0.0414789]
[1748404960785,4.23619278,174.88,174.86,0.0414789]
[1748404961674,5.7157,174.87,174.86,0.0414789]
[1748404962780,5.7169,174.84,174.81,5.7175]
[1748404963781,0.03983144,174.84,174.81,0.03631108]
[1748404964681,5.75663144,174.84,174.81,5.75381108]
[1748404967079,0.03983144,174.84,174.81,0.03631108]
[1748404968890,5.7174,174.82,174.81,0.03631108]
[1748404971587,5.718,174.8,174.77,5.7188]
[1748404972487,5.718,174.8,174.77,5.76156455]
[1748404972692,5.76139886,174.8,174.77,5.76156455]
[1748404972892,5.7183,174.79,174.77,5.76156455]
[1748404973093,5.7183,174.79,174.77,0.04276455]
[1748404973593,5.7187,174.78,174.77,0.04276455]
[1748404977694,5.7184,174.79,174.77,0.04276455]
[1748404980496,0.04339886,174.8,174.79,5.7183]
[1748404981792,267.34,174.87,174.77,28.38276455]
[1748404981998,273.0559,174.87,174.77,28.38276455]
[1748404982807,0.03631206,174.84,174.83,5.7168]
[1748404986815,0.03631206,174.84,174.82,0.04149539]
[1748404987609,0.03631206,174.84,174.82,5.75879539]
[1748404988114,0.03631206,174.84,174.82,0.04149539]
[1748404991118,0.03631206,174.84,174.82,5.75869539]
[1748404991813,5.75301206,174.84,174.82,5.75869539]
[1748404993519,5.717,174.83,174.82,0.04149539]
[1748405001823,0.03631206,174.84,174.75,28.32]
[1748405002025,0.03631206,174.84,174.75,138.42]
[1748405002221,0.03631206,174.84,174.77,5.7189]
[1748405002517,5.7183,174.79,174.75,28.32]
[1748405002922,5.75570936,174.79,174.76,5.7191]
[1748405007632,5.75570936,174.79,174.75,28.35761655]
[1748405007633,0.03740936,174.79,174.75,28.35761655]
[1748405008127,5.7192,174.77,174.75,0.03761655]
[1748405008728,5.7188,174.78,174.75,5.75721655]
[1748405008926,0.03740936,174.79,174.75,0.03761655]
[1748405009329,5.7191,174.77,174.75,5.75721655]
[1748405009631,0.03740936,174.79,174.75,0.03761655]
[1748405010326,5.7192,174.77,174.75,0.03761655]
[1748405010532,0.03740936,174.79,174.75,0.03761655]
[1748405010929,5.7192,174.77,174.75,0.03761655]
[1748405011131,0.03740936,174.79,174.75,0.03761655]
[1748405012131,5.7192,174.77,174.75,0.03761655]
[1748405013526,5.7193,174.76,174.75,0.03761655]
[1748405015839,0.03740936,174.79,174.75,5.75721655]
[1748405017037,5.7192,174.77,174.75,5.75721655]
[1748405017840,5.7192,174.77,174.75,0.03761655]
[1748405018838,5.7192,174.77,174.75,5.75711655]
[1748405019136,0.03740936,174.79,174.75,5.75711655]
[1748405019137,0.03740936,174.79,174.77,5.7188]
[1748405020539,0.03740936,174.79,174.75,0.03761655]
[1748405020933,5.7189,174.78,174.75,0.03761655]
[1748405021442,5.7189,174.78,174.75,5.75701655]
[1748405029132,5.75580936,174.79,174.76,5.7192]
[1748405029339,5.75580936,174.79,174.75,0.03761655]
[1748405029943,5.75580936,174.79,174.76,5.7191]
[1748405030844,5.75580936,174.79,174.77,5.7189]
[1748405032244,5.75580936,174.79,174.76,5.7192]
[1748405034048,5.75580936,174.79,174.77,5.7189]
[1748405034441,0.03740936,174.79,174.75,0.03761655]
[1748405034645,0.03740936,174.79,174.78,5.7187]
[1748405038048,0.03740936,174.79,174.77,5.7188]
[1748405038346,0.03740936,174.79,174.75,0.03761655]
[1748405038550,5.75590936,174.79,174.76,5.7191]
[1748405040252,0.03740936,174.79,174.77,5.7188]
[1748405043355,5.75580936,174.79,174.77,5.7188]
[1748405043651,5.75580936,174.79,174.75,0.03761655]
[1748405044048,5.75580936,174.79,174.76,5.7192]
[1748405044451,0.03740936,174.79,174.75,0.03761655]
[1748405044644,0.03740936,174.79,174.77,5.7188]
[1748405046252,0.03740936,174.79,174.78,5.7187]
[1748405046551,0.03740936,174.79,174.75,0.03761655]
[1748405047452,0.03740936,174.79,174.77,5.719]
[1748405047648,5.75580936,174.79,174.75,0.03761655]
[1748405048056,5.75580936,174.79,174.75,4.27725613]
[1748405048353,5.75580936,174.79,174.76,5.7191]
[1748405049642,5.75580936,174.79,174.77,5.719]
[1748405049841,0.03740936,174.79,174.77,5.719]
[1748405051257,0.03740936,174.79,174.75,4.27725613]
[1748405051654,0.03740936,174.79,174.75,0.03761655]
[1748405052258,5.7189,174.78,174.75,5.75701655]
[1748405058061,5.7189,174.78,174.76,5.7193]
[1748405059061,5.75580936,174.79,174.76,5.7193]
[1748405061462,5.7187,174.78,174.76,5.7193]
[1748405062068,5.7187,174.78,174.75,0.03761655]
[1748405062569,5.7191,174.77,174.75,0.03761655]
[1748405063971,5.7191,174.77,174.75,5.75711655]
[1748405064468,5.7188,174.78,174.75,5.75711655]
[1748405067375,5.7188,174.78,174.76,5.7192]
[1748405068975,0.03740936,174.79,174.75,0.03761655]
[1748405070076,0.03740936,174.79,174.76,5.7192]